[Event "*** SCC Grand Prix: Titled Tuesday Blitz"]
[Site "Chess.com"]
[Date "2020.06.02"]
[Round "4"]
[White "thedjoker98"]
[Black "ItsCheckM8Mate"]
[Result "1-0"]
[WhiteElo "2450"]
[BlackElo "2268"]
[TimeControl "180+1"]
[EndTime "10:35:35 PDT"]
[Termination "thedjoker98 won by resignation"]

1. d4 {[%clk 0:03:00.9]} 1... Nf6 {[%clk 0:02:59.8]} 2. c4 {[%clk 0:03:01.3]}
2... e6 {[%clk 0:02:59.9]} 3. Nc3 {[%clk 0:03:01.6]} 3... Bb4 {[%clk 0:02:59.7]}
4. g3 {[%clk 0:03:02.1]} 4... d5 {[%clk 0:02:48.5]} 5. Nf3 {[%clk 0:03:02.5]}
5... O-O {[%clk 0:02:43.4]} 6. Bg2 {[%clk 0:03:01.3]} 6... dxc4 {[%clk 0:02:43]}
7. O-O {[%clk 0:03:00.6]} 7... c5 {[%clk 0:02:43]} 8. dxc5 {[%clk 0:02:59.5]}
8... Qe7 {[%clk 0:02:39]} 9. Qd6 {[%clk 0:02:46.2]} 9... Bxc5 {[%clk 0:02:36.3]}
10. Qxe7 {[%clk 0:02:45.2]} 10... Bxe7 {[%clk 0:02:35.9]} 11. Ne5 {[%clk
0:02:46.1]} 11... Nc6 {[%clk 0:02:15.9]} 12. Nxc6 {[%clk 0:02:42.7]} 12... bxc6
{[%clk 0:02:15.4]} 13. Bxc6 {[%clk 0:02:43.6]} 13... Rb8 {[%clk 0:02:15.3]} 14.
Rd1 {[%clk 0:02:44.1]} 14... a6 {[%clk 0:01:55.2]} 15. Rb1 {[%clk 0:02:41.5]}
15... e5 {[%clk 0:01:44.9]} 16. Bg5 {[%clk 0:02:39.7]} 16... Bf5 {[%clk
0:01:43.4]} 17. e4 {[%clk 0:02:36.3]} 17... Bg4 {[%clk 0:01:27.9]} 18. Rd2
{[%clk 0:02:31.5]} 18... Ba3 {[%clk 0:01:23.4]} 19. bxa3 {[%clk 0:02:28.9]} 1-0

[Event "*** SCC Grand Prix: Titled Tuesday Blitz"]
[Site "Chess.com"]
[Date "2020.06.02"]
[Round "4"]
[White "zajka-molotok"]
[Black "biaf13"]
[Result "1-0"]
[WhiteElo "2379"]
[BlackElo "2003"]
[TimeControl "180+1"]
[EndTime "10:35:47 PDT"]
[Termination "zajka-molotok won by resignation"]

1. c4 {[%clk 0:03:00.9]} 1... c5 {[%clk 0:02:58.5]} 2. g3 {[%clk 0:02:59.7]}
2... Nf6 {[%clk 0:02:59.1]} 3. Bg2 {[%clk 0:03:00]} 3... d5 {[%clk 0:02:59.5]}
4. cxd5 {[%clk 0:02:59.5]} 4... Nxd5 {[%clk 0:03:00.4]} 5. Nc3 {[%clk
0:02:59.9]} 5... Nc7 {[%clk 0:03:01.1]} 6. Nf3 {[%clk 0:02:55.4]} 6... Nc6
{[%clk 0:03:00.8]} 7. O-O {[%clk 0:02:55.1]} 7... e5 {[%clk 0:03:01.3]} 8. d3
{[%clk 0:02:52.5]} 8... Be7 {[%clk 0:03:01.2]} 9. Bd2 {[%clk 0:02:45.6]} 9...
O-O {[%clk 0:03:01.1]} 10. Rc1 {[%clk 0:02:45.7]} 10... Bd7 {[%clk 0:02:58.3]}
11. Ne4 {[%clk 0:02:35.9]} 11... b6 {[%clk 0:02:57.2]} 12. Bc3 {[%clk
0:02:35.3]} 12... f5 {[%clk 0:02:55.9]} 13. Ned2 {[%clk 0:02:30.7]} 13... Bd6
{[%clk 0:02:44.7]} 14. Nc4 {[%clk 0:02:28.7]} 14... Qe7 {[%clk 0:02:34]} 15.
Nxd6 {[%clk 0:02:26.1]} 15... Qxd6 {[%clk 0:02:34.9]} 16. Nd2 {[%clk 0:02:22.1]}
16... Rae8 {[%clk 0:02:33.9]} 17. Nc4 {[%clk 0:02:20.8]} 17... Qf6 {[%clk
0:02:28.6]} 18. f4 {[%clk 0:02:12.2]} 18... Nd4 {[%clk 0:02:18.5]} 19. e3 {[%clk
0:02:03.4]} 19... Nc6 {[%clk 0:02:07.9]} 20. Nxe5 {[%clk 0:02:00.7]} 20... Nxe5
{[%clk 0:02:08]} 21. Bxe5 {[%clk 0:02:00.2]} 21... Qd8 {[%clk 0:02:08.6]} 22. d4
{[%clk 0:01:48.9]} 22... cxd4 {[%clk 0:02:04.2]} 23. Bxc7 {[%clk 0:01:47]} 1-0

[Event "*** SCC Grand Prix: Titled Tuesday Blitz"]
[Site "Chess.com"]
[Date "2020.06.02"]
[Round "4"]
[White "albano87"]
[Black "quesfr"]
[Result "1-0"]
[WhiteElo "2446"]
[BlackElo "2261"]
[TimeControl "180+1"]
[EndTime "10:35:54 PDT"]
[Termination "albano87 won by resignation"]

1. Nf3 {[%clk 0:03:00.9]} 1... Nf6 {[%clk 0:02:59.2]} 2. g3 {[%clk 0:03:01]}
2... g6 {[%clk 0:02:57]} 3. Bg2 {[%clk 0:03:01.6]} 3... Bg7 {[%clk 0:02:57.3]}
4. O-O {[%clk 0:02:59.5]} 4... O-O {[%clk 0:02:57.3]} 5. d4 {[%clk 0:03:00.1]}
5... d5 {[%clk 0:02:56.6]} 6. c4 {[%clk 0:02:59.7]} 6... c6 {[%clk 0:02:56.9]}
7. cxd5 {[%clk 0:02:59.5]} 7... cxd5 {[%clk 0:02:55.8]} 8. Nc3 {[%clk
0:02:59.5]} 8... Ne4 {[%clk 0:02:55.2]} 9. Nxe4 {[%clk 0:02:56.4]} 9... dxe4
{[%clk 0:02:55]} 10. Ng5 {[%clk 0:02:55.3]} 10... f5 {[%clk 0:02:53.2]} 11. Qb3+
{[%clk 0:02:52.3]} 11... e6 {[%clk 0:02:53.5]} 12. Nxe6 {[%clk 0:02:50.1]} 12...
Bxe6 {[%clk 0:02:52]} 13. Qxe6+ {[%clk 0:02:49.2]} 13... Kh8 {[%clk 0:02:52.3]}
14. e3 {[%clk 0:02:44.8]} 14... Nc6 {[%clk 0:02:42.9]} 15. Bd2 {[%clk
0:02:36.1]} 15... Re8 {[%clk 0:02:29.3]} 16. Qb3 {[%clk 0:02:32.7]} 16... Ne7
{[%clk 0:02:24.7]} 17. Rac1 {[%clk 0:02:27.5]} 17... b6 {[%clk 0:02:22]} 18. Bb4
{[%clk 0:02:21.4]} 18... Nd5 {[%clk 0:02:22.2]} 19. Ba3 {[%clk 0:02:17.4]} 19...
Qd7 {[%clk 0:02:18.6]} 20. Rc2 {[%clk 0:02:09.9]} 20... h5 {[%clk 0:02:15.3]}
21. Rfc1 {[%clk 0:01:57.3]} 21... Kh7 {[%clk 0:02:13.5]} 22. Rc6 {[%clk
0:01:46.5]} 22... Bh6 {[%clk 0:01:59.4]} 23. Rd6 {[%clk 0:01:38.8]} 1-0

[Event "*** SCC Grand Prix: Titled Tuesday Blitz"]
[Site "Chess.com"]
[Date "2020.06.02"]
[Round "4"]
[White "kot60"]
[Black "checkmatequen"]
[Result "1-0"]
[WhiteElo "2447"]
[BlackElo "2264"]
[TimeControl "180+1"]
[EndTime "10:35:55 PDT"]
[Termination "kot60 won by resignation"]

1. e4 {[%clk 0:03:00.9]} 1... c5 {[%clk 0:02:57.3]} 2. Nc3 {[%clk 0:03:00.3]}
2... e6 {[%clk 0:02:57.5]} 3. Bc4 {[%clk 0:03:00.6]} 3... a6 {[%clk 0:02:57.2]}
4. a4 {[%clk 0:03:00.4]} 4... Nc6 {[%clk 0:02:56.3]} 5. d3 {[%clk 0:03:00.5]}
5... Nf6 {[%clk 0:02:55.4]} 6. Nge2 {[%clk 0:03:00.5]} 6... d5 {[%clk
0:02:55.5]} 7. exd5 {[%clk 0:03:01.4]} 7... exd5 {[%clk 0:02:56.3]} 8. Bb3
{[%clk 0:03:01.6]} 8... Bd6 {[%clk 0:02:56.2]} 9. Bg5 {[%clk 0:02:57.3]} 9... d4
{[%clk 0:02:53.3]} 10. Ne4 {[%clk 0:02:52.8]} 10... Be7 {[%clk 0:02:50.2]} 11.
Bxf6 {[%clk 0:02:52.2]} 11... Bxf6 {[%clk 0:02:51.1]} 12. O-O {[%clk 0:02:51.9]}
12... Be7 {[%clk 0:02:49.9]} 13. f4 {[%clk 0:02:51]} 13... O-O {[%clk
0:02:49.4]} 14. f5 {[%clk 0:02:51]} 14... Bd6 {[%clk 0:02:35]} 15. f6 {[%clk
0:02:47.7]} 15... g6 {[%clk 0:02:32]} 16. Qd2 {[%clk 0:02:44.7]} 16... Re8
{[%clk 0:02:32.2]} 17. Qh6 {[%clk 0:02:38.1]} 17... Bf8 {[%clk 0:02:31.1]} 18.
Bxf7+ {[%clk 0:02:33.9]} 18... Kh8 {[%clk 0:02:24.1]} 19. Qh4 {[%clk 0:02:27.9]}
19... Re5 {[%clk 0:01:33]} 20. Bxg6 {[%clk 0:02:18.6]} 20... Qc7 {[%clk
0:01:30.8]} 21. f7 {[%clk 0:02:09.5]} 21... h6 {[%clk 0:01:17.6]} 22. Qf6+
{[%clk 0:02:08.7]} 1-0

[Event "*** SCC Grand Prix: Titled Tuesday Blitz"]
[Site "Chess.com"]
[Date "2020.06.02"]
[Round "4"]
[White "Malysch"]
[Black "gahryman"]
[Result "1-0"]
[WhiteElo "2515"]
[BlackElo "2687"]
[TimeControl "180+1"]
[EndTime "10:35:58 PDT"]
[Termination "Malysch won by resignation"]

1. d4 {[%clk 0:03:00.9]} 1... Nf6 {[%clk 0:02:59.7]} 2. c4 {[%clk 0:03:00.8]}
2... g6 {[%clk 0:03:00]} 3. g3 {[%clk 0:03:00.8]} 3... Bg7 {[%clk 0:03:00.1]} 4.
Bg2 {[%clk 0:03:00.9]} 4... O-O {[%clk 0:02:58.2]} 5. Nf3 {[%clk 0:03:01.8]}
5... d6 {[%clk 0:02:59.1]} 6. O-O {[%clk 0:03:00.7]} 6... c6 {[%clk 0:03:00]} 7.
Nc3 {[%clk 0:03:00.3]} 7... Bf5 {[%clk 0:03:00.2]} 8. Ne1 {[%clk 0:02:59.1]}
8... Be6 {[%clk 0:02:59.8]} 9. d5 {[%clk 0:02:58.3]} 9... cxd5 {[%clk
0:03:00.7]} 10. cxd5 {[%clk 0:02:58.9]} 10... Bd7 {[%clk 0:03:01.3]} 11. Nf3
{[%clk 0:02:53.2]} 11... a5 {[%clk 0:03:00.5]} 12. Nd4 {[%clk 0:02:52.5]} 12...
Na6 {[%clk 0:02:59.9]} 13. h3 {[%clk 0:02:51.9]} 13... Nc5 {[%clk 0:02:56.8]}
14. Be3 {[%clk 0:02:40.9]} 14... a4 {[%clk 0:02:55.8]} 15. Rc1 {[%clk
0:02:39.5]} 15... Qa5 {[%clk 0:02:55]} 16. Qd2 {[%clk 0:02:34.6]} 16... Rfc8
{[%clk 0:02:54.4]} 17. Rfd1 {[%clk 0:02:33.7]} 17... Qb4 {[%clk 0:02:26.9]} 18.
Kh2 {[%clk 0:02:26.8]} 18... h5 {[%clk 0:02:19.1]} 19. Kg1 {[%clk 0:02:00.3]}
19... Be8 {[%clk 0:02:13.5]} 20. Kh2 {[%clk 0:01:56.8]} 1-0

[Event "*** SCC Grand Prix: Titled Tuesday Blitz"]
[Site "Chess.com"]
[Date "2020.06.02"]
[Round "4"]
[White "Muracle"]
[Black "Colombiano07"]
[Result "1-0"]
[WhiteElo "2596"]
[BlackElo "2334"]
[TimeControl "180+1"]
[EndTime "10:36:00 PDT"]
[Termination "Muracle won by resignation"]

1. d4 {[%clk 0:03:00.9]} 1... d5 {[%clk 0:02:47]} 2. c4 {[%clk 0:03:00.3]} 2...
Bf5 {[%clk 0:02:42.3]} 3. Nc3 {[%clk 0:02:55.3]} 3... e6 {[%clk 0:02:33.8]} 4.
cxd5 {[%clk 0:02:51.2]} 4... exd5 {[%clk 0:02:33.7]} 5. Qb3 {[%clk 0:02:50.3]}
5... Nc6 {[%clk 0:02:34.1]} 6. Nf3 {[%clk 0:02:24.7]} 6... Bb4 {[%clk
0:02:32.5]} 7. a3 {[%clk 0:02:20.4]} 7... Bxc3+ {[%clk 0:02:25.1]} 8. bxc3
{[%clk 0:02:21.3]} 8... Rb8 {[%clk 0:02:24.9]} 9. g3 {[%clk 0:02:20.7]} 9... Nf6
{[%clk 0:02:21.4]} 10. Bg2 {[%clk 0:02:20.3]} 10... O-O {[%clk 0:02:21.9]} 11.
O-O {[%clk 0:02:20.2]} 11... Na5 {[%clk 0:02:22.1]} 12. Qa2 {[%clk 0:02:15.9]}
12... Nc4 {[%clk 0:02:21.8]} 13. Bf4 {[%clk 0:02:13.4]} 13... Ne4 {[%clk
0:02:18.3]} 14. Rac1 {[%clk 0:02:04.1]} 14... Re8 {[%clk 0:02:00.5]} 15. h4
{[%clk 0:01:56.7]} 15... Qd7 {[%clk 0:01:52.5]} 16. Ne5 {[%clk 0:01:52.9]} 16...
Nxe5 {[%clk 0:01:51.4]} 17. Bxe5 {[%clk 0:01:53.8]} 17... f6 {[%clk 0:01:50.3]}
18. Bf4 {[%clk 0:01:53.5]} 18... b5 {[%clk 0:01:42.3]} 19. f3 {[%clk 0:01:48.3]}
19... g5 {[%clk 0:01:40.4]} 20. fxe4 {[%clk 0:01:43.6]} 1-0

[Event "*** SCC Grand Prix: Titled Tuesday Blitz"]
[Site "Chess.com"]
[Date "2020.06.02"]
[Round "4"]
[White "Grandmaster2B"]
[Black "WeAintSurePal"]
[Result "0-1"]
[WhiteElo "2419"]
[BlackElo "2253"]
[TimeControl "180+1"]
[EndTime "10:36:01 PDT"]
[Termination "WeAintSurePal won by checkmate"]

1. e4 {[%clk 0:03:00.9]} 1... c6 {[%clk 0:02:54.6]} 2. d4 {[%clk 0:02:54.7]}
2... d5 {[%clk 0:02:55.5]} 3. Nd2 {[%clk 0:02:53.8]} 3... dxe4 {[%clk
0:02:53.8]} 4. Nxe4 {[%clk 0:02:54.7]} 4... Nf6 {[%clk 0:02:54.4]} 5. Nxf6+
{[%clk 0:02:54.9]} 5... exf6 {[%clk 0:02:55.3]} 6. c3 {[%clk 0:02:54.9]} 6...
Bd6 {[%clk 0:02:55.8]} 7. Bd3 {[%clk 0:02:54.1]} 7... O-O {[%clk 0:02:56.4]} 8.
Qc2 {[%clk 0:02:54.5]} 8... Re8+ {[%clk 0:02:57]} 9. Ne2 {[%clk 0:02:54.9]} 9...
h5 {[%clk 0:02:57.6]} 10. O-O {[%clk 0:02:53.9]} 10... Nd7 {[%clk 0:02:57.5]}
11. h3 {[%clk 0:02:50.1]} 11... Nf8 {[%clk 0:02:56.7]} 12. Bf4 {[%clk
0:02:49.2]} 12... Rxe2 {[%clk 0:02:55.7]} 13. Qxe2 {[%clk 0:02:42]} 13... Bxf4
{[%clk 0:02:55.4]} 14. Qxh5 {[%clk 0:02:42.9]} 14... Be6 {[%clk 0:02:52.6]} 15.
Rfe1 {[%clk 0:02:34.6]} 15... Bc7 {[%clk 0:02:39.7]} 16. b3 {[%clk 0:02:27.1]}
16... Qd6 {[%clk 0:02:38.8]} 17. g3 {[%clk 0:02:25]} 17... Qd7 {[%clk
0:02:38.4]} 18. Kh2 {[%clk 0:02:22.4]} 18... f5 {[%clk 0:02:28.1]} 19. Rad1
{[%clk 0:02:18.6]} 19... f4 {[%clk 0:02:27.9]} 20. c4 {[%clk 0:02:16.1]} 20...
g6 {[%clk 0:02:15.8]} 21. Qe2 {[%clk 0:01:41.8]} 21... Bxh3 {[%clk 0:02:08.1]}
22. Qe7 {[%clk 0:01:42.7]} 22... fxg3+ {[%clk 0:02:00.4]} 23. fxg3 {[%clk
0:01:40.5]} 23... Bxg3+ {[%clk 0:01:54]} 24. Kxg3 {[%clk 0:01:40.7]} 24... Qg4+
{[%clk 0:01:53.4]} 25. Kf2 {[%clk 0:01:40.6]} 25... Qf4+ {[%clk 0:01:49.8]} 26.
Ke2 {[%clk 0:01:40.5]} 26... Bg4# {[%clk 0:01:49.3]} 0-1

[Event "*** SCC Grand Prix: Titled Tuesday Blitz"]
[Site "Chess.com"]
[Date "2020.06.02"]
[Round "4"]
[White "FMJoseHerrera"]
[Black "swimmerchess"]
[Result "1-0"]
[WhiteElo "2665"]
[BlackElo "2821"]
[TimeControl "180+1"]
[EndTime "10:36:03 PDT"]
[Termination "FMJoseHerrera won by checkmate"]

1. Nf3 {[%clk 0:03:00.9]} 1... Nf6 {[%clk 0:02:59.1]} 2. g3 {[%clk 0:02:55]}
2... g6 {[%clk 0:02:58.2]} 3. Bg2 {[%clk 0:02:55.9]} 3... Bg7 {[%clk 0:02:59.1]}
4. d3 {[%clk 0:02:55.4]} 4... O-O {[%clk 0:03:00]} 5. Nc3 {[%clk 0:02:55.8]}
5... d5 {[%clk 0:02:58.2]} 6. h4 {[%clk 0:02:56]} 6... d4 {[%clk 0:02:56.2]} 7.
Nb1 {[%clk 0:02:55.8]} 7... c5 {[%clk 0:02:54.8]} 8. h5 {[%clk 0:02:55.4]} 8...
Nc6 {[%clk 0:02:55.4]} 9. hxg6 {[%clk 0:02:55.2]} 9... hxg6 {[%clk 0:02:55.3]}
10. Bh6 {[%clk 0:02:55.7]} 10... Bxh6 {[%clk 0:02:54.7]} 11. Rxh6 {[%clk
0:02:56.6]} 11... Kg7 {[%clk 0:02:55.6]} 12. Qd2 {[%clk 0:02:56.9]} 12... Rh8
{[%clk 0:02:53.1]} 13. Rxh8 {[%clk 0:02:57.1]} 13... Qxh8 {[%clk 0:02:54]} 14.
Na3 {[%clk 0:02:57.4]} 14... Bh3 {[%clk 0:02:52.7]} 15. Bh1 {[%clk 0:02:32.6]}
15... Bg4 {[%clk 0:02:43]} 16. O-O-O {[%clk 0:02:30.8]} 16... Qh3 {[%clk
0:02:41]} 17. Ng5 {[%clk 0:02:28.4]} 17... Qh2 {[%clk 0:02:39.6]} 18. Bxc6
{[%clk 0:02:17.4]} 18... bxc6 {[%clk 0:02:39.2]} 19. f3 {[%clk 0:02:15.8]} 19...
Bd7 {[%clk 0:02:37.1]} 20. Nc4 {[%clk 0:02:15.6]} 20... Qxg3 {[%clk 0:02:31.9]}
21. Rh1 {[%clk 0:02:15.4]} 21... Qg2 {[%clk 0:02:16.9]} 22. Ne6+ {[%clk
0:01:55.9]} 22... fxe6 {[%clk 0:01:35.2]} 23. Qh6+ {[%clk 0:01:55.4]} 23... Kf7
{[%clk 0:01:35.8]} 24. Ne5+ {[%clk 0:01:55.7]} 24... Ke8 {[%clk 0:01:36.4]} 25.
Qh8+ {[%clk 0:01:56]} 25... Ng8 {[%clk 0:01:37.1]} 26. Qxg8# {[%clk 0:01:56.5]}
1-0

[Event "*** SCC Grand Prix: Titled Tuesday Blitz"]
[Site "Chess.com"]
[Date "2020.06.02"]
[Round "4"]
[White "barbara25"]
[Black "TudorAnton"]
[Result "1-0"]
[WhiteElo "2226"]
[BlackElo "2407"]
[TimeControl "180+1"]
[EndTime "10:36:04 PDT"]
[Termination "barbara25 won by resignation"]

1. e4 {[%clk 0:03:00.9]} 1... g6 {[%clk 0:03:00.9]} 2. d4 {[%clk 0:02:58.4]}
2... Bg7 {[%clk 0:02:57.4]} 3. Nc3 {[%clk 0:02:58.1]} 3... d6 {[%clk 0:02:56.1]}
4. h4 {[%clk 0:02:54.6]} 4... h5 {[%clk 0:02:54]} 5. Be2 {[%clk 0:02:54.5]} 5...
c5 {[%clk 0:02:50.3]} 6. Nf3 {[%clk 0:02:54.7]} 6... cxd4 {[%clk 0:02:47.9]} 7.
Nxd4 {[%clk 0:02:54.3]} 7... Nc6 {[%clk 0:02:48.8]} 8. Be3 {[%clk 0:02:54]} 8...
Bd7 {[%clk 0:02:45.4]} 9. Qd2 {[%clk 0:02:53.7]} 9... Rc8 {[%clk 0:02:45]} 10.
f3 {[%clk 0:02:53.9]} 10... Ne5 {[%clk 0:02:44.6]} 11. O-O-O {[%clk 0:02:53.3]}
11... Nc4 {[%clk 0:02:44.6]} 12. Bxc4 {[%clk 0:02:52.9]} 12... Rxc4 {[%clk
0:02:45.5]} 13. f4 {[%clk 0:02:49.9]} 13... b5 {[%clk 0:02:44.5]} 14. f5 {[%clk
0:02:49.1]} 14... b4 {[%clk 0:02:43.1]} 15. Nce2 {[%clk 0:02:49]} 15... Nf6
{[%clk 0:02:41.9]} 16. fxg6 {[%clk 0:02:47.8]} 16... fxg6 {[%clk 0:02:41.7]} 17.
Nf4 {[%clk 0:02:46.2]} 17... Qa5 {[%clk 0:02:35.4]} 18. Kb1 {[%clk 0:02:44.3]}
18... Nxe4 {[%clk 0:02:30.8]} 19. Qd3 {[%clk 0:02:43.8]} 19... d5 {[%clk
0:02:31]} 20. Nb3 {[%clk 0:02:03]} 20... Qb5 {[%clk 0:02:05.3]} 21. Nxd5 {[%clk
0:01:44.3]} 21... Bc6 {[%clk 0:01:49]} 22. Nc7+ {[%clk 0:01:42.2]} 22... Kf7
{[%clk 0:01:46.4]} 23. Nxb5 {[%clk 0:01:42.1]} 23... Bxb5 {[%clk 0:01:45.3]} 24.
Qd5+ {[%clk 0:01:41.5]} 1-0

[Event "*** SCC Grand Prix: Titled Tuesday Blitz"]
[Site "Chess.com"]
[Date "2020.06.02"]
[Round "4"]
[White "AbdulovOrkhan"]
[Black "Kira170"]
[Result "0-1"]
[WhiteElo "2396"]
[BlackElo "2622"]
[TimeControl "180+1"]
[EndTime "10:36:05 PDT"]
[Termination "Kira170 won by resignation"]

1. e4 {[%clk 0:03:00.9]} 1... d6 {[%clk 0:02:59]} 2. d4 {[%clk 0:03:00]} 2...
Nf6 {[%clk 0:02:59.1]} 3. Nc3 {[%clk 0:03:00]} 3... g6 {[%clk 0:02:59.2]} 4. f4
{[%clk 0:02:54.3]} 4... Bg7 {[%clk 0:02:59]} 5. Nf3 {[%clk 0:02:54.5]} 5... O-O
{[%clk 0:02:58.5]} 6. Bd3 {[%clk 0:02:48]} 6... Nc6 {[%clk 0:02:57.6]} 7. e5
{[%clk 0:02:44.6]} 7... dxe5 {[%clk 0:02:58.5]} 8. dxe5 {[%clk 0:02:44.1]} 8...
Nd5 {[%clk 0:02:57.8]} 9. Nxd5 {[%clk 0:02:40.7]} 9... Qxd5 {[%clk 0:02:58.7]}
10. Qe2 {[%clk 0:02:40.8]} 10... Bf5 {[%clk 0:02:55.4]} 11. Bxf5 {[%clk
0:02:39.3]} 11... gxf5 {[%clk 0:02:54.9]} 12. O-O {[%clk 0:02:40.2]} 12... Rad8
{[%clk 0:02:45.1]} 13. Be3 {[%clk 0:02:33]} 13... h6 {[%clk 0:02:36.5]} 14. Rfd1
{[%clk 0:02:26.5]} 14... Qe4 {[%clk 0:02:36]} 15. c3 {[%clk 0:02:20.1]} 15... a6
{[%clk 0:02:26]} 16. b3 {[%clk 0:02:04.6]} 16... Rfe8 {[%clk 0:02:18.2]} 17. c4
{[%clk 0:01:58.9]} 17... f6 {[%clk 0:02:04.6]} 18. exf6 {[%clk 0:01:20.4]} 18...
Bxf6 {[%clk 0:02:03.5]} 19. Rxd8 {[%clk 0:01:20.1]} 19... Rxd8 {[%clk
0:02:02.2]} 20. Rd1 {[%clk 0:01:21]} 20... Rxd1+ {[%clk 0:02:01.4]} 0-1

[Event "*** SCC Grand Prix: Titled Tuesday Blitz"]
[Site "Chess.com"]
[Date "2020.06.02"]
[Round "4"]
[White "sergeikim"]
[Black "murtas73"]
[Result "0-1"]
[WhiteElo "2476"]
[BlackElo "2671"]
[TimeControl "180+1"]
[EndTime "10:36:21 PDT"]
[Termination "murtas73 won by resignation"]

1. d4 {[%clk 0:03:00.9]} 1... Nf6 {[%clk 0:02:57.7]} 2. c4 {[%clk 0:03:00.6]}
2... e6 {[%clk 0:02:57.9]} 3. Nc3 {[%clk 0:03:00.3]} 3... Bb4 {[%clk 0:02:56.5]}
4. Qc2 {[%clk 0:03:00.1]} 4... O-O {[%clk 0:02:54.8]} 5. a3 {[%clk 0:03:00.1]}
5... Bxc3+ {[%clk 0:02:54]} 6. Qxc3 {[%clk 0:03:01]} 6... Qe8 {[%clk 0:02:54.4]}
7. Nf3 {[%clk 0:03:01]} 7... d6 {[%clk 0:02:48]} 8. g3 {[%clk 0:03:01.2]} 8...
Nbd7 {[%clk 0:02:46.2]} 9. Bg2 {[%clk 0:03:01.1]} 9... a5 {[%clk 0:02:38.6]} 10.
b3 {[%clk 0:03:00.6]} 10... e5 {[%clk 0:02:34.5]} 11. d5 {[%clk 0:02:59.9]}
11... Nc5 {[%clk 0:02:33.2]} 12. O-O {[%clk 0:02:55.2]} 12... a4 {[%clk
0:02:32.3]} 13. Nd2 {[%clk 0:02:43.2]} 13... axb3 {[%clk 0:02:31.1]} 14. Nxb3
{[%clk 0:02:43]} 14... Nxb3 {[%clk 0:02:30.2]} 15. Qxb3 {[%clk 0:02:42.3]} 15...
b6 {[%clk 0:02:31.1]} 16. Bd2 {[%clk 0:02:35.9]} 16... Qa4 {[%clk 0:02:30.1]}
17. Qc3 {[%clk 0:02:26.7]} 17... Nd7 {[%clk 0:02:19]} 18. Rfb1 {[%clk
0:02:17.5]} 18... f5 {[%clk 0:02:15.7]} 19. f4 {[%clk 0:02:11.3]} 19... exf4
{[%clk 0:02:10.1]} 20. Bxf4 {[%clk 0:01:55.8]} 20... Nc5 {[%clk 0:02:09.8]} 21.
Rb4 {[%clk 0:01:48]} 21... Qe8 {[%clk 0:02:08.9]} 22. Bf3 {[%clk 0:01:41.8]}
22... Bd7 {[%clk 0:02:06.3]} 23. Re1 {[%clk 0:01:33.9]} 23... Qe7 {[%clk
0:02:05.7]} 24. Kg2 {[%clk 0:01:29.6]} 24... Rae8 {[%clk 0:02:05]} 25. Rbb1
{[%clk 0:01:24.8]} 25... g5 {[%clk 0:02:04.1]} 0-1

[Event "*** SCC Grand Prix: Titled Tuesday Blitz"]
[Site "Chess.com"]
[Date "2020.06.02"]
[Round "4"]
[White "SophieNikoladze"]
[Black "Sunnika"]
[Result "0-1"]
[WhiteElo "2161"]
[BlackElo "2401"]
[TimeControl "180+1"]
[EndTime "10:36:29 PDT"]
[Termination "Sunnika won by resignation"]

1. d4 {[%clk 0:03:00.9]} 1... Nf6 {[%clk 0:02:58.9]} 2. Nf3 {[%clk 0:03:01]}
2... d5 {[%clk 0:02:57.7]} 3. e3 {[%clk 0:03:00.1]} 3... c6 {[%clk 0:02:57.7]}
4. Bd3 {[%clk 0:02:59.9]} 4... Bg4 {[%clk 0:02:58.3]} 5. O-O {[%clk 0:02:59.6]}
5... e6 {[%clk 0:02:58.7]} 6. c4 {[%clk 0:03:00]} 6... Nbd7 {[%clk 0:02:58.7]}
7. Nc3 {[%clk 0:03:00.5]} 7... Be7 {[%clk 0:02:57.3]} 8. h3 {[%clk 0:03:00.6]}
8... Bh5 {[%clk 0:02:56.6]} 9. b3 {[%clk 0:03:00.9]} 9... O-O {[%clk 0:02:56.8]}
10. Bb2 {[%clk 0:03:00.7]} 10... a5 {[%clk 0:02:54.5]} 11. g4 {[%clk 0:02:59.9]}
11... Bg6 {[%clk 0:02:54.1]} 12. Ne5 {[%clk 0:02:59.8]} 12... Nxe5 {[%clk
0:02:52.1]} 13. dxe5 {[%clk 0:02:59.2]} 13... Nd7 {[%clk 0:02:53]} 14. f4 {[%clk
0:02:58.4]} 14... Bxd3 {[%clk 0:02:51.3]} 15. Qxd3 {[%clk 0:02:57.9]} 15... Nc5
{[%clk 0:02:52.2]} 16. Qe2 {[%clk 0:02:57.3]} 16... dxc4 {[%clk 0:02:50]} 17.
Qxc4 {[%clk 0:02:54.4]} 17... Qd3 {[%clk 0:02:48.9]} 18. Rfe1 {[%clk 0:02:40.7]}
18... Qxc4 {[%clk 0:02:43.9]} 19. bxc4 {[%clk 0:02:40.2]} 19... Nd3 {[%clk
0:02:44.8]} 20. Re2 {[%clk 0:02:39]} 20... Rfd8 {[%clk 0:02:40.5]} 21. Rb1
{[%clk 0:02:37]} 21... Bb4 {[%clk 0:02:30.6]} 22. Ne4 {[%clk 0:02:35.7]} 22...
Nxb2 {[%clk 0:02:15.6]} 23. Rbxb2 {[%clk 0:02:35.1]} 23... Rd3 {[%clk 0:02:16]}
24. Kf2 {[%clk 0:02:33.3]} 24... Rad8 {[%clk 0:02:16.3]} 25. Rec2 {[%clk
0:02:31]} 25... b6 {[%clk 0:01:32.4]} 26. c5 {[%clk 0:02:28.8]} 26... b5 {[%clk
0:01:32.2]} 27. Nd6 {[%clk 0:02:27.3]} 27... Kf8 {[%clk 0:01:31.1]} 28. Ke2
{[%clk 0:02:24.6]} 28... Ra3 {[%clk 0:01:23.7]} 29. Rc1 {[%clk 0:02:19.5]} 29...
Ke7 {[%clk 0:01:18.8]} 30. Rd1 {[%clk 0:02:19.2]} 30... Bxc5 {[%clk 0:01:16.1]}
31. Ne4 {[%clk 0:02:08.8]} 31... Rxe3+ {[%clk 0:01:14.5]} 32. Kf1 {[%clk
0:02:08.1]} 32... Rxd1+ {[%clk 0:01:13.6]} 0-1